lending/lending_fUSD_20240206
["ID","MTS","AMOUNT","RATE_DAILY","PERIOD"]
[313343236,1707181837636,-578.925,0.00022796,2]
[313343237,1707181837648,-6300.59213696,0.00022796,2]
[313343238,1707181837656,-1383.7,0.00022796,2]
[313343239,1707181837665,-13357.85661365,0.00022796,2]
[313343240,1707181837674,-297.28761012,0.00022796,2]
[313343241,1707181837683,-4122.59445967,0.00022796,2]
[313343242,1707181837691,-205.49618061,0.00022796,2]
[313343243,1707181837700,-161.87294372,0.00022797,2]
[313343244,1707181837710,-205.49618061,0.00022822,2]
[313343245,1707181837719,-205.49618061,0.00022847,2]
[313343246,1707181837728,-205.49618061,0.00022873,2]
[313343247,1707181837736,-268.89523988,0.00022886,2]
[313343248,1707181837745,-1091.80430931,0.00022893,2]
[313343249,1707181837754,-1466.36,0.00022893,2]
[313343250,1707181837763,-156.7611156,0.00022894,2]
[313343251,1707181837771,-184.39228461,0.00022894,2]
[313343252,1707181837780,-3807.96321686,0.00022894,2]
[313343253,1707181837790,-390.43634238,0.00022894,2]
[313343254,1707181837799,-758.37362278,0.00022894,2]
[313343255,1707181837808,-737.47,0.00022896,2]
[313343256,1707181837816,-2664.85836799,0.00022896,2]
[313343257,1707181837825,-970.2760521,0.00022896,2]
[313343258,1707181837834,-155.65924392,0.00022896,2]
[313343259,1707181837843,-353.76039003,0.00022896,2]
[313343260,1707181837852,-415.50518176,0.00022896,2]
[313343261,1707181837862,-204.92196308,0.00022896,2]
[313343262,1707181837870,-755.08080934,0.00022896,2]
[313343263,1707181837879,-487.24115174,0.00022896,2]
[313343264,1707181837889,-487.84228146,0.00022896,2]
[313343265,1707181837898,-23390.66645819,0.00022896,2]
[313343266,1707181837914,-1797.86074603,0.00022896,2]
[313343267,1707181837925,-419.64674676,0.00022896,2]
[313343268,1707181837941,-1235058.047571,0.00022896,2]
[313343269,1707181837950,-1026.972,0.00022896,2]
[313343270,1707181837959,-737.22,0.00022897,2]
[313343271,1707181837969,-2779.02755521,0.00022897,2]
[313343272,1707181837978,-155.96219145,0.00022897,2]
[313343273,1707181837987,-417.83524348,0.00022897,2]
[313343274,1707181837996,-155.95087656,0.00022897,2]
[313343275,1707181838005,-166.69253359,0.00022897,2]
[313343276,1707181838015,-232.19045124,0.00022897,2]
[313343277,1707181838024,-707.90617777,0.00022897,2]
[313343278,1707181838033,-500.0,0.00022898,2]
[313343279,1707181838042,-500.0,0.00022898,2]
[313343280,1707181838052,-186.82669218,0.00022898,2]
[313343281,1707181838061,-500.0,0.00022898,2]
[313343282,1707181838070,-500.0,0.00022898,2]
[313343283,1707181838079,-500.0,0.00022898,2]
[313343284,1707181838088,-500.0,0.00022898,2]
[313343285,1707181838097,-342.01923778,0.00022898,2]
[313343286,1707181838106,-499.99999999,0.00022898,2]
[313343287,1707181838116,-205.49618061,0.00022898,2]
[313343288,1707181838124,-184.9274677,0.00022898,2]
[313343289,1707181838133,-1156.23606463,0.00022898,2]
[313343290,1707181838142,-3046.34905745,0.00022898,2]
[313343291,1707181838152,-7772.71177779,0.00022898,2]
[313343292,1707181838161,-1724.81762316,0.00022898,2]
[313343293,1707181838170,-194.52198548,0.00022898,2]
[313343294,1707181838179,-54524.29222613,0.00022899,2]
[313343295,1707181838188,-2993.37585803,0.000229,2]
[313343296,1707181838198,-1696895.6420548,0.000229,2]
[313343311,1707181840111,-1112.09992099,0.000229,2]
[313343327,1707181842383,-245.4888767,0.000229,2]
[313343328,1707181842399,-2134.3101,0.000229,2]
[313343329,1707181842454,-325.83872551,0.000229,2]
[313343330,1707181842560,-1613.44020906,0.000229,2]
[313343349,1707181845611,-529.8977155,0.00022796,2]
[313343350,1707181845623,-3130.49676247,0.000229,2]
[313343351,1707181845664,-4262.1,0.000229,2]
[313343355,1707181874405,302.84488676,0.00022076,2]
[313343356,1707181902036,151.0206,0.00022997,3]
[313343357,1707181903866,151.0206,0.00022997,3]
[313343358,1707181904588,151.0206,0.00022997,3]
[313343359,1707181905328,151.0206,0.00022997,3]
[313343360,1707181938245,151.0206,0.00023,3]
[313343361,1707181944402,151.0206,0.00023,3]
[313343362,1707181953055,151.0206,0.00023,3]
[313343363,1707181954013,151.0206,0.00023,3]
[313343364,1707181954785,151.0206,0.00023,3]
[313343365,1707181955508,151.0206,0.00023,3]
[313343366,1707181956323,151.0206,0.00023,3]
[313343367,1707181959091,151.0206,0.00023,3]
[313343368,1707181970047,151.0206,0.00023,3]
[313343369,1707181970923,151.0206,0.00023,3]
[313343370,1707181971634,151.0206,0.00023,3]
[313343371,1707181979684,151.0206,0.00023,3]
[313343372,1707181980522,151.0206,0.00023,3]
[313343373,1707181986625,250.0,0.00022229,2]
[313343374,1707182061096,319.56,0.0002012,2]
[313343375,1707182061313,319.56,0.00022384,2]
[313343376,1707182119138,222.1,0.00022012,2]
[313343377,1707182141679,2017.28,0.00021948,2]
[313343378,1707182154534,166.33,0.00021948,2]
[313343379,1707182184013,499.39583585,0.00022492,2]
[313343380,1707182283805,2000.0,0.00021938,2]
[313343381,1707182301288,250.0,0.00021928,2]
[313343382,1707182319203,764.58,0.00021941,2]
[313343383,1707182324344,159.93,0.00022106,2]
[313343384,1707182357226,160.0,0.00021935,2]
[313343385,1707182467222,152.58495254,0.00022482,2]
[313343386,1707182486695,287.6,0.00019961,2]
[313343387,1707182486923,287.6,0.00022225,2]
[313343388,1707182756359,637.15,0.00021856,2]
[313343389,1707182833218,400.0,0.000225,8]
[313343390,1707182835309,900.0,0.000226,8]
[313343391,1707182837396,1400.0,0.000227,8]
[313343392,1707182839497,1800.0,0.000228,8]
[313343393,1707182841579,2300.0,0.000229,8]
[313343394,1707182845678,160564.47542642,0.000225,2]
[313343395,1707182845702,96597.07367358,0.000225,2]
[313343396,1707182861530,250.0,0.00021856,2]
[313343397,1707182931170,3625.8983,0.000225,2]
[313343398,1707182941510,872.0,0.00021921,2]
[313343399,1707182942880,258.84,0.00019989,2]
[313343400,1707182943075,258.84,0.00022253,2]
[313343404,1707182990879,154.42,0.00021921,2]
[313343409,1707183031630,-631.36254553,0.00022552,2]
[313343410,1707183031640,-150.0,0.00022553,2]
[313343411,1707183031649,-3041.11146921,0.00022553,2]
[313343412,1707183031658,-8863.2166359,0.00022554,2]
[313343413,1707183031671,-384.39716006,0.00022554,2]
[313343414,1707183031683,-279.69657276,0.00022554,2]
[313343415,1707183031699,-6713.49999363,0.00022554,2]
[313343416,1707183031711,-5523.84069082,0.00022554,2]
[313343417,1707183031730,-771.5074656,0.00022554,2]
[313343418,1707183031742,-25195.19310937,0.00022554,2]
[313343419,1707183031754,-3285.86088101,0.00022554,2]
[313343420,1707183031765,-437.380939,0.00022554,2]
[313343421,1707183031860,-4000.84167043,0.00022554,2]
[313343422,1707183031872,-627.24368813,0.00022554,2]
[313343423,1707183037594,-1645.99957587,0.00022554,2]
[313343424,1707183037607,-758.36707319,0.00022554,2]
[313343425,1707183037716,-900.82433991,0.00022554,2]
[313343426,1707183037813,-3265.54416202,0.00022554,2]
[313343427,1707183037822,-4661.77264035,0.00022554,2]
[313343428,1707183037834,-14548.54062785,0.00022554,2]
[313343429,1707183037844,-639.66864273,0.00022554,2]
[313343430,1707183037853,-584.85118101,0.00022555,2]
[313343431,1707183037861,-3947.99477991,0.00022555,2]
[313343432,1707183037872,-2883.82233992,0.00022555,2]
[313343433,1707183037881,-158.69146225,0.00022555,2]
[313343434,1707183037892,-716.31,0.00022596,2]
[313343435,1707183037901,-712.58,0.00022597,2]
[313343436,1707183037910,-726.95,0.00022598,2]
[313343437,1707183037920,-720.37,0.000226,2]
[313343438,1707183037929,-731.61,0.000226,2]
[313343439,1707183037940,-6829.8,0.00022601,2]
[313343440,1707183037951,-220.94,0.00022601,2]
[313343441,1707183037960,-716.64,0.00022601,2]
[313343442,1707183037970,-499.99,0.00022602,2]
[313343443,1707183037979,-1404.17,0.00022602,2]
[313343444,1707183037989,-574.2,0.00022602,2]
[313343445,1707183037999,-152.58495253,0.0002269,2]
[313343446,1707183038009,-2500.0,0.00022699,2]
[313343447,1707183038019,-3607.27015222,0.00022823,2]
[313343448,1707183038029,-978.3605,0.00022871,2]
[313343449,1707183038039,-728.94,0.00022871,2]
[313343450,1707183038048,-161.87294372,0.00022884,2]
[313343451,1707183038057,-12244.70189591,0.00022884,2]
[313343452,1707183038067,-728.77,0.00022891,2]
[313343453,1707183038076,-180.61056611,0.00022897,2]
[313343454,1707183038085,-152.58495253,0.00022898,2]
[313343455,1707183038094,-2030.89937164,0.00022898,2]
[313343456,1707183038103,-1149.87841544,0.00022898,2]
[313343457,1707183038112,-194.52198548,0.00022898,2]
[313343458,1707183038122,-770.82404308,0.00022898,2]
[313343459,1707183038131,-728.08,0.00022899,2]
[313343460,1707183038140,-501.88908355,0.00022899,2]
[313343461,1707183038150,-9495.23125047,0.000229,2]
[313343462,1707183038159,-153.08286577,0.000229,2]
[313343463,1707183038168,-1297.69,0.000229,2]
[313343464,1707183038177,-5784.3356157,0.00022907,2]
[313343465,1707183038212,-4967.6196943,0.00022907,2]
[313343466,1707183038222,-23212.52278551,0.00022907,2]
[313343467,1707183040339,-367.79630865,0.00022907,2]
[313343468,1707183040352,-5126.8903347,0.00022907,2]
[313343469,1707183040363,-2233.57800838,0.00022907,2]
[313343470,1707183041094,-880.54686907,0.00022907,2]
[313343499,1707183045798,-629.27928532,0.00022807,2]
[313343500,1707183045809,-2753.33335791,0.00022807,2]
[313343501,1707183045820,-2986.46382857,0.00022807,2]
[313343502,1707183045947,-460.50304018,0.00022807,2]
[313343514,1707183077745,2485.19324714,0.00022121,2]
[313343515,1707183086495,802490.9859,0.000225,2]
[313343516,1707183094887,1016.5,0.00022085,2]
[313343517,1707183095752,1393.07866535,0.00022121,2]
[313343518,1707183226345,160.58,0.00022093,2]
[313343519,1707183226464,160.58,0.00022221,2]
[313343520,1707183226691,160.58,0.00022349,2]
[313343521,1707183226913,160.58,0.00022477,2]
[313343522,1707183227987,571.63,0.00021929,2]
[313343523,1707183261497,154.90171037,0.00022,2]
[313343524,1707183265271,151.0206,0.00023,3]
[313343525,1707183268585,151.0206,0.00023,3]
[313343526,1707183269612,151.0206,0.00023,3]
[313343527,1707183270446,151.0206,0.00023,3]
[313343528,1707183271375,151.0206,0.00023,3]
[313343529,1707183272528,151.0206,0.00023,3]
[313343530,1707183273375,151.0206,0.00023,3]
[313343531,1707183380394,302.4,0.00021734,2]
[313343532,1707183508779,21939.41,0.00021715,2]
[313343533,1707183513011,265.0,0.00019806,2]
[313343534,1707183513261,265.0,0.0002207,2]
[313343535,1707183534257,4228.64,0.00021744,2]
[313343536,1707183633502,158.66,0.00021716,2]
[313343537,1707183652932,476.35,0.00021701,2]
[313343538,1707183678845,160.58,0.00021869,2]
[313343539,1707183679076,160.58,0.00022097,2]
[313343540,1707183679288,160.58,0.00022325,2]
[313343541,1707183685826,631.36254553,0.00022324,2]
[313343542,1707183710788,166.33,0.00021705,2]
[313343543,1707183715988,250.0,0.00021713,2]
[313343544,1707183742917,155.10709256,0.000225,2]
[313343545,1707183850057,758.08,0.00021692,2]
[313343546,1707184000262,-237.57070249,0.00022503,2]
[313343547,1707184006327,238.5,0.00019779,2]
[313343548,1707184006541,238.5,0.00022043,2]
[313343549,1707184013220,280.40713519,0.00022501,2]
[313343550,1707184025216,1225.17962571,0.00022501,2]
[313343551,1707184031173,19215.6844269,0.00022501,2]
[313343552,1707184047853,232.45133154,0.00022311,2]
[313343553,1707184050643,2791.56476332,0.00022501,2]
[313343554,1707184106049,396.95,0.00021689,2]
[313343555,1707184150155,160.58,0.00021857,2]
[313343556,1707184150359,160.58,0.00022427,2]
[313343557,1707184160655,4848.0,0.00022353,2]
[313343558,1707184181511,35538.0262,0.00022438,2]
[313343559,1707184192655,3041.67994149,0.00022501,2]
[313343560,1707184195986,4289.5561115,0.00022501,2]
[313343561,1707184209994,4283.84376683,0.00022501,2]
[313343562,1707184212660,1775.06318082,0.00022501,2]
[313343563,1707184227157,250.0,0.00021704,2]
[313343568,1707184231733,-19215.6844269,0.00022502,2]
[313343570,1707184231742,-136511.6806666,0.00022503,2]
[313343572,1707184231752,-53657.8418924,0.00022503,2]
[313343573,1707184231763,-2812.3757,0.00022507,2]
[313343574,1707184231772,-155.18858219,0.00022518,2]
[313343575,1707184231781,-150.0,0.00022519,2]
[313343576,1707184231790,-150.0,0.00022519,2]
[313343577,1707184231799,-150.0,0.00022519,2]
[313343578,1707184231808,-21273.32227897,0.0002252,2]
[313343579,1707184231821,-1500.21843679,0.0002252,2]
[313343580,1707184231859,-4920.80836614,0.0002252,2]
[313343581,1707184231870,-503.15432782,0.0002252,2]
[313343582,1707184231882,-18174.71674368,0.0002252,2]
[313343583,1707184231892,-10293.043415,0.0002252,2]
[313343584,1707184231902,-2806.88355228,0.00022536,2]
[313343585,1707184231915,-39541.7819014,0.00022538,2]
[313343586,1707184231933,-529.25504091,0.00022538,2]
[313343587,1707184231945,-1003.8665897,0.00022538,2]
[313343588,1707184231968,-1062.38997499,0.00022538,2]
[313343589,1707184231980,-122895.1714929,0.00022538,2]
[313343590,1707184231991,-235.99394318,0.00022605,2]
[313343591,1707184232002,-281.14131784,0.00022605,2]
[313343592,1707184232012,-1228.63967286,0.00022605,2]
[313343593,1707184232021,-3165.31738641,0.00022607,2]
[313343594,1707184232032,-233.96,0.00022607,2]
[313343595,1707184232041,-1584.8699,0.00022607,2]
[313343596,1707184232051,-2431.7028,0.00022607,2]
[313343597,1707184232061,-500.0,0.00022607,2]
[313343598,1707184232070,-3671.3003,0.00022607,2]
[313343599,1707184232079,-1744.8576,0.00022607,2]
[313343600,1707184232088,-802.5,0.00022608,2]
[313343601,1707184232097,-150.0,0.00022644,2]
[313343602,1707184232107,-150.0,0.00022646,2]
[313343603,1707184232117,-283.24468404,0.00022676,2]
[313343604,1707184232126,-155.4198219,0.00022676,2]
[313343605,1707184232138,-180.61056611,0.00022697,2]
[313343606,1707184232148,-1307.86,0.000227,2]
[313343607,1707184232156,-564.23274022,0.00022705,2]
[313343608,1707184232165,-531.71850356,0.00022707,2]
[313343609,1707184232174,-33356.347,0.00022707,2]
[313343611,1707184232183,-17203.38403663,0.00022707,2]
[313343612,1707184232194,-1737.29613962,0.00022707,2]
[313343613,1707184232210,-580.41220598,0.00022707,2]
[313343614,1707184232221,-1061.32060187,0.00022707,2]
[313343615,1707184232234,-334.18590284,0.00022707,2]
[313343616,1707184232247,-4226.95917431,0.00022707,2]
[313343617,1707184232259,-937.93475933,0.00022707,2]
[313343618,1707184232269,-2289.79792667,0.00022707,2]
[313343619,1707184232284,-1227.00027936,0.00022707,2]
[313343620,1707184232295,-758.30553985,0.00022707,2]
[313343621,1707184232306,-1118.59559007,0.00022707,2]
[313343622,1707184232317,-334.50747262,0.00022707,2]
[313343623,1707184232342,-442.76851,0.00022707,2]
[313343624,1707184232355,-318.17552596,0.00022707,2]
[313343625,1707184232375,-714.69912125,0.00022707,2]
[313343648,1707184237968,-904.21,0.00022707,2]
[313343649,1707184237992,-11784.49412225,0.00022707,2]
[313343661,1707184240630,-807.83499999,0.00022503,2]
[313343674,1707184242923,-1936.72485055,0.00022503,2]
[313343675,1707184243090,-386.96454,0.00022503,2]
[313343678,1707184245972,-4002.00292718,0.00022503,2]
[313343679,1707184245985,-1283.83254,0.00022503,2]
[313343681,1707184266016,278.19091922,0.00022,2]
[313343682,1707184288008,234.13729212,0.00022501,2]
[313343683,1707184298781,413.71593201,0.00022501,2]
[313343684,1707184299894,2328.75332884,0.00022501,2]
[313343685,1707184313543,949.9364,0.00022403,2]
[313343686,1707184313608,168.97,0.00021737,2]
[313343687,1707184315586,393.53,0.00021737,2]
[313343688,1707184328162,853.40447569,0.00022501,2]
[313343689,1707184336371,1539.3707,0.00022438,2]
[313343690,1707184338784,92780.6617,0.00022403,2]
[313343691,1707184342448,189.45800073,0.00022403,2]
[313343692,1707184347459,189.45800058,0.00022429,2]
[313343693,1707184352444,189.45800058,0.00022455,2]
[313343694,1707184357448,189.45800058,0.00022481,2]
[313343695,1707184358254,291.68,0.00021737,2]
[313343696,1707184360254,1200.7536,0.00022407,2]
[313343697,1707184461263,191179.0,0.00022031,2]
[313343700,1707184489213,212.20564503,0.00022,2]
[313343701,1707184498235,500.0,0.00022,2]
[313343702,1707184535152,366.11,0.00021696,2]
[313343703,1707184591468,158.66,0.00021689,2]
[313343704,1707184621843,300.0,0.00022501,2]
[313343705,1707184634635,230.18,0.00019766,2]
[313343706,1707184634842,230.18,0.0002203,2]
[313343707,1707184656235,160.58,0.00021854,2]
[313343708,1707184748509,35457.0,0.00027,30]
[313343710,1707184759213,685.17,0.00021693,2]
[313343711,1707184801525,300.0,0.00022501,2]
[313343712,1707184864937,167.0,0.00022377,2]
[313343713,1707184937941,151.56640054,0.00022402,2]
[313343714,1707184942944,151.56640046,0.00022427,2]
[313343715,1707184948011,151.56640046,0.00022453,2]
[313343716,1707184952954,151.56640046,0.00022478,2]
[313343717,1707184981578,300.0,0.00022501,2]
[313343718,1707185046351,305.09,0.00021682,2]
[313343719,1707185091306,207.16,0.00019774,2]
[313343720,1707185091581,207.16,0.00022038,2]
[313343721,1707185133199,505.1143407,0.00021998,2]
[313343725,1707185190441,451.86,0.00021692,2]
[313343726,1707185204035,3697.5951,0.00022403,2]
[313343727,1707185305424,155.0,0.00022501,2]
[313343728,1707185310132,167.0,0.00022348,2]
[313343736,1707185391771,202.755,0.00022403,2]
[313343739,1707185418134,1024.6412,0.00022403,2]
[313343740,1707185426501,4538.04604803,0.00022501,2]
[313343750,1707185431935,-296.58386133,0.00022501,2]
[313343752,1707185431945,-4263.07443407,0.00022502,2]
[313343754,1707185431954,-8897.81515812,0.00022502,2]
[313343758,1707185431998,-472.96270286,0.00022502,2]
[313343759,1707185432010,-391.9015,0.00022502,2]
[313343760,1707185432022,-577.5783648,0.00022502,2]
[313343761,1707185432034,-818.10924833,0.00022502,2]
[313343762,1707185432046,-1265.04169903,0.00022502,2]
[313343763,1707185432058,-2306.58114959,0.00022502,2]
[313343764,1707185432074,-499.16534257,0.00022502,2]
[313343765,1707185432086,-3986.5292616,0.00022502,2]
[313343766,1707185432095,-2790.30777947,0.00022503,2]
[313343767,1707185432104,-5381.0795,0.00022503,2]
[313343768,1707185432113,-245000.0,0.00022503,2]
[313343769,1707185432124,-461.816,0.00022503,2]
[313343770,1707185432133,-1000.0,0.00022503,2]
[313343771,1707185432141,-151.56640046,0.00022503,2]
[313343772,1707185432151,-500.0,0.00022507,2]
[313343773,1707185432162,-151.56640046,0.00022529,2]
[313343774,1707185432171,-151.56640046,0.00022554,2]
[313343775,1707185432180,-151.56640046,0.0002258,2]
[313343776,1707185432189,-3055.98,0.00022584,2]
[313343777,1707185432198,-281.42,0.00022584,2]
[313343778,1707185432207,-100000.0,0.00022603,2]
[313343779,1707185432218,-337.7402,0.00022603,2]
[313343780,1707185432228,-27809.8148,0.00022603,2]
[313343782,1707185432237,-13264.61,0.00022603,2]
[313343783,1707185432247,-151.56640046,0.00022605,2]
[313343785,1707185432256,-14615.14,0.00022605,2]
[313343787,1707185432265,-531.21706811,0.00022606,2]
[313343789,1707185432274,-163.42917623,0.0002261,2]
[313343791,1707185432283,-151.56640046,0.0002263,2]
[313343793,1707185432294,-151.56640046,0.00022656,2]
[313343795,1707185432303,-151.56640046,0.00022681,2]
[313343798,1707185432314,-154.31308338,0.00022693,2]
[313343800,1707185432323,-155.39579224,0.00022701,2]
[313343802,1707185432333,-417.57399103,0.00022701,2]
[313343804,1707185432342,-2333.35725149,0.00022701,2]
[313343806,1707185432351,-499.99,0.00022701,2]
[313343808,1707185432361,-234.21003046,0.00022702,2]
[313343810,1707185432370,-316941.6540723,0.00022703,2]
[313343811,1707185432379,-531.21706808,0.00022704,2]
[313343814,1707185432389,-772.98178228,0.00022704,2]
[313343816,1707185432398,-43151.21001097,0.00022705,2]
[313343818,1707185432407,-703.04310981,0.00022706,2]
[313343819,1707185432418,-280.29341637,0.00022706,2]
[313343822,1707185432427,-155.27534411,0.00022706,2]
[313343824,1707185432436,-151.56640046,0.00022706,2]
[313343825,1707185432445,-764.0,0.0002271,2]
[313343828,1707185432455,-50432.58870313,0.0002271,2]
[313343834,1707185432501,-1498.94636376,0.0002271,2]
[313343836,1707185432512,-410.7947473,0.0002271,2]
[313343838,1707185432526,-1216.44,0.0002271,2]
[313343841,1707185432538,-1964.1773477,0.0002271,2]
[313343844,1707185432557,-6004.13120219,0.0002271,2]
[313343846,1707185432568,-1949.57132788,0.0002271,2]
[313343848,1707185432579,-10625.0,0.0002271,2]
[313343850,1707185432590,-519.80629185,0.0002271,2]
[313343854,1707185432610,-487.68023022,0.0002271,2]
[313343856,1707185432621,-13239.54778587,0.0002271,2]
[313343858,1707185432630,-41907.579261,0.00022716,2]
[313343860,1707185432639,-68074.6,0.00022716,2]
[313343862,1707185432649,-11626.825,0.00022716,2]
[313343864,1707185432658,-24798.1528595,0.00022716,2]
[313343866,1707185432667,-151.56640046,0.00022732,2]
[313343868,1707185432676,-151.56640046,0.00022757,2]
[313343870,1707185432685,-151.56640046,0.00022783,2]
[313343872,1707185432694,-33226.91412,0.000228,2]
[313343874,1707185432703,-531.21706808,0.00022802,2]
[313343876,1707185432714,-6461.15206912,0.00022805,2]
[313343878,1707185432723,-151.56640046,0.00022808,2]
[313343880,1707185432732,-151.56640046,0.00022833,2]
[313343882,1707185432741,-151.56640046,0.00022859,2]
[313343884,1707185432750,-11274.61508942,0.00022884,2]
[313343886,1707185432758,-151.56640046,0.00022884,2]
[313343888,1707185432767,-432.29862823,0.00022884,2]
[313343890,1707185432777,-5000.0,0.00022884,2]
[313343892,1707185432786,-1357.66522102,0.00022898,2]
[313343894,1707185432795,-860.72671896,0.00022898,2]
[313343896,1707185432803,-195.30386658,0.00022898,2]
[313343897,1707185432812,-189.88530188,0.00022898,2]
[313343898,1707185432822,-516.81515387,0.00022898,2]
[313343899,1707185432831,-156.8153228,0.000229,2]
[313343900,1707185432841,-531.21706808,0.000229,2]
[313343901,1707185432849,-624.26077524,0.00022905,2]
[313343902,1707185432859,-1366.42113734,0.00022905,2]
[313343903,1707185432868,-771.83384068,0.00022905,2]
[313343904,1707185432877,-2919.71307413,0.00022905,2]
[313343905,1707185432886,-749.69177821,0.00022906,2]
[313343906,1707185432895,-150.01,0.00022906,2]
[313343907,1707185432904,-3309.97832316,0.00022906,2]
[313343909,1707185432913,-6449.2955393,0.00022931,2]
[313343910,1707185432922,-1103.74728596,0.00022965,2]
[313343911,1707185432931,-259.27544103,0.00022983,2]
[313343912,1707185433036,-233.03948915,0.00022983,2]
[313343913,1707185433049,-89653.2103999,0.00022984,2]
[313343914,1707185433058,-62928.68766481,0.00022984,2]
[313343928,1707185438176,-579.4974,0.00022895,2]
[313343932,1707185440305,100000.0,0.00022403,2]
[313343935,1707185440519,-297.1180489,0.00022895,2]
[313343936,1707185440533,-150.01,0.00022983,2]
[313343937,1707185440550,-320.81061626,0.00022983,2]
[313343938,1707185440581,-978.84687834,0.00022983,2]
[313343939,1707185441332,-850.6064732,0.00022983,2]
[313343940,1707185441441,-1131.3411936,0.00022983,2]
[313343941,1707185441460,-28.37316176,0.00022983,2]
[313343942,1707185441474,-432.84428885,0.00022984,2]
[313344000,1707185443121,-158.22022873,0.00022982,2]
[313344002,1707185443130,-27596.20484624,0.00022984,2]
[313344004,1707185443139,-52541.87842503,0.00022984,2]
[313344121,1707185446053,-1161.00623494,0.00022982,2]
[313344160,1707185447505,500.0,0.00022403,2]
[313344161,1707185477987,1656.83104735,0.00022913,3]
[313344162,1707185511601,1000.0,0.00022403,2]
[313344163,1707185512582,158.66,0.00022174,2]
[313344164,1707185534806,3000.0,0.000225,2]
[313344165,1707185553025,2251.14331533,0.00022913,3]
[313344166,1707185560937,254.24,0.00022148,2]
[313344167,1707185565586,194.23,0.00020221,2]
[313344168,1707185565786,194.23,0.00022485,2]
[313344169,1707185644069,638.51,0.00022054,2]
[313344170,1707185761715,353.7,0.00022,2]
[313344171,1707185957348,151.48192694,0.00022,2]
[313344172,1707185979783,182.59,0.00020036,2]
[313344173,1707185980264,182.59,0.000223,2]
[313344174,1707186008799,211.86,0.00021969,2]
[313344175,1707186094942,489.19,0.00021963,2]
[313344176,1707186151849,282.42,0.00027,30]
[313344177,1707186228897,153.80808654,0.00022,2]
[313344178,1707186410241,172.23,0.00020006,2]
[313344179,1707186410436,172.23,0.0002227,2]
[313344180,1707186474227,176.55,0.00021914,2]
[313344181,1707186582011,158.66,0.00021914,2]
[313344195,1707186632101,-203.86229138,0.00022575,2]
[313344196,1707186632111,-167.42,0.00022576,2]
[313344197,1707186632121,-167.0,0.00022621,2]
[313344198,1707186632130,-162.82230453,0.00022677,2]
[313344199,1707186632139,-12050.05800951,0.00022729,2]
[313344200,1707186632175,-7165.62641739,0.00022729,2]
[313344201,1707186632184,-4538.04604803,0.0002273,2]
[313344202,1707186632193,-800.0,0.00022743,2]
[313344203,1707186632202,-269.11786002,0.00022752,2]
[313344204,1707186632211,-155.40880575,0.00022752,2]
[313344205,1707186632220,-200.0,0.00022762,2]
[313344206,1707186632229,-800.0,0.00022762,2]
[313344207,1707186632238,-800.0,0.00022781,2]
[313344208,1707186632246,-1314.83,0.00022781,2]
[313344209,1707186632256,-18875.65,0.00022781,2]
[313344210,1707186632264,-2441.51930701,0.00022784,2]
[313344211,1707186632274,-1000.0,0.00022784,2]
[313344212,1707186632283,-5606.6415618,0.00022784,2]
[313344213,1707186632295,-41815.3446382,0.00022784,2]
[313344214,1707186632305,-2950.5713,0.00022784,2]
[313344215,1707186632314,-11149.14668994,0.00022784,2]
[313344216,1707186632339,-855.81159931,0.00022784,2]
[313344217,1707186632350,-556.69032924,0.00022784,2]
[313344218,1707186632361,-4279.4,0.00022784,2]
[313344219,1707186632372,-1315.50158843,0.00022784,2]
[313344220,1707186632383,-8314.90419443,0.00022784,2]
[313344221,1707186632395,-979.38,0.00022784,2]
[313344222,1707186632416,-422.84951053,0.00022784,2]